bitfinex-derivatives/quotes_SOLF0:USTF0_20260208
["timestamp","ask_amount","ask_price","bid_price","bid_amount"]
[1770545755617,14.58478601,87.82,87.763,17.27668175]
[1770545757714,4.32648601,87.82,87.766,10.2645]
[1770545757917,4.32648601,87.82,87.767,17.30585725]
[1770545758720,4.32648601,87.82,87.769,17.2385722]
[1770545759813,211.24,87.878,87.712,20.5417]
[1770545759814,9.34732219,87.89,87.791,17.24130394]
[1770545760020,4.32648601,87.84,87.791,17.24130394]
[1770545763922,4.32648601,87.85,87.791,17.24130394]
[1770545764123,4.32648601,87.86,87.801,17.29322429]
[1770545764519,4.32648601,87.86,87.806,17.28723905]
[1770545765123,4.32648601,87.86,87.811,17.28723905]
[1770545765620,4.32648601,87.87,87.811,17.28723905]
[1770545766223,10.2528,87.867,87.811,17.28723905]
[1770545766428,4.32648601,87.85,87.811,17.28723905]
[1770545766628,4.32648601,87.86,87.811,17.28723905]
[1770545766829,4.32648601,87.89,87.831,17.244315]
[1770545767031,4.32648601,87.9,87.841,17.244315]
[1770545768433,4.32648601,87.9,87.843,17.30626255]
[1770545771150,4.32648601,87.89,87.83,4.32648601]
[1770545771440,4.32648601,87.87,87.827,17.77536969]
[1770545771829,4.32648601,87.89,87.83,4.32648601]
[1770545772029,4.32648601,87.92,87.861,17.77685963]
[1770545773933,4.32648601,87.92,87.863,17.68261937]
[1770545774933,1.98025436,87.97,87.863,17.68261937]
[1770545774934,4.32648601,87.9,87.863,17.68261937]
[1770545776043,4.32648601,87.91,87.863,17.68261937]
[1770545777739,4.32648601,87.92,87.863,17.68261937]
[1770545780743,4.32648601,87.92,87.865,17.62037153]
[1770545781049,4.32648601,87.92,87.804,159.6006]
[1770545781050,4.32648601,87.93,87.871,17.62037153]
[1770545782742,4.32648601,87.92,87.871,17.62037153]
[1770545783249,4.32648601,87.91,87.858,17.57566291]
[1770545783447,4.32648601,87.91,87.85,4.32648601]
[1770545783448,4.30985222,87.91,87.863,17.57727051]
[1770545785450,4.30985222,87.92,87.863,17.57727051]
[1770545785641,4.30985222,87.91,87.863,17.57727051]
[1770545786348,4.30985222,87.9,87.863,17.57727051]
[1770545787348,4.30985222,87.89,87.851,17.66221693]
[1770545788149,14.55765222,87.91,87.851,17.66221693]
[1770545789446,4.30985222,87.9,87.851,17.66221693]
[1770545794558,4.30985222,87.89,87.851,17.66221693]
[1770545794950,4.30985222,87.88,87.851,17.66221693]
[1770545795360,4.30985222,87.89,87.851,17.66221693]
[1770545795557,4.30985222,87.9,87.851,17.66221693]
[1770545796060,4.30985222,87.91,87.851,17.66221693]
[1770545797058,4.30985222,87.9,87.851,17.66221693]
[1770545799863,4.30985222,87.91,87.851,17.66221693]
[1770545800062,4.30985222,87.92,87.861,17.5097523]
[1770545801764,10.246,87.925,87.871,17.52213616]
[1770545803267,10.245,87.934,87.871,17.52213616]
[1770545803567,4.30985222,87.94,87.881,17.58593182]
[1770545805468,4.30985222,87.93,87.881,17.58593182]
[1770545805667,4.30985222,87.92,87.881,17.58593182]
[1770545805866,4.30985222,87.92,87.861,17.34519029]
[1770545807166,4.30985222,87.9,87.861,17.34519029]
[1770545807767,4.30985222,87.9,87.84,4.30985222]
[1770545807768,4.30985222,87.9,87.847,17.39696661]
[1770545807968,4.30985222,87.89,87.847,17.39696661]
[1770545808670,4.30985222,87.88,87.847,17.39696661]
[1770545809468,4.30985222,87.88,87.826,17.52938734]
[1770545809665,4.30985222,87.87,87.826,17.52938734]
[1770545810865,10.43623879,87.892,87.826,17.52938734]
[1770545810866,4.30985222,87.86,87.826,17.52938734]
[1770545811665,4.30985222,87.87,87.826,17.52938734]
[1770545811870,4.30985222,87.89,87.826,17.52938734]
[1770545812071,9.32109189,87.889,87.826,17.52938734]
[1770545812272,4.30985222,87.89,87.826,17.52938734]
[1770545812575,4.30985222,87.89,87.831,17.46170564]
[1770545813571,4.30985222,87.9,87.831,17.46170564]
[1770545813773,9.320782,87.899,87.831,17.46170564]
[1770545813970,9.320782,87.898,87.831,17.46170564]
[1770545814272,9.320782,87.897,87.831,17.46170564]
[1770545814473,4.30985222,87.9,87.842,17.45422143]
[1770545814675,4.30985222,87.91,87.851,17.45422143]
[1770545815163,10.2471,87.916,87.851,17.45422143]
[1770545815362,9.32081904,87.915,87.851,17.45422143]
[1770545815574,10.2471,87.916,87.851,17.45422143]
[1770545815875,10.2471,87.916,87.861,17.45549427]
[1770545820475,4.30985222,87.91,87.85,4.30985222]
[1770545820774,4.30985222,87.9,87.844,17.38271231]
[1770545820974,4.30985222,87.89,87.844,17.38271231]
[1770545821375,4.30985222,87.88,87.821,17.38397764]
[1770545821777,4.30985222,87.87,87.821,17.38397764]
[1770545822275,4.30985222,87.86,87.821,17.38397764]
[1770545822977,4.30985222,87.89,87.821,17.47692855]
[1770545823173,4.30985222,87.89,87.831,17.47692855]
[1770545823373,20.86996789,87.91,87.831,17.47692855]
[1770545823574,11.55020926,87.91,87.831,17.47692855]
[1770545826680,10.2496,87.895,87.831,17.47692855]
[1770545828877,10.2506,87.886,87.831,17.47692855]
[1770545833381,9.31975863,87.927,87.831,17.47692855]
[1770545833584,11.55020926,87.93,87.831,17.47692855]
[1770545834482,10.2483,87.906,87.839,17.370764]
[1770545836077,11.55020926,87.93,87.844,17.37185219]
[1770545836078,10.2472,87.915,87.844,17.37185219]
[1770545836985,10.2472,87.915,87.846,17.39640334]
[1770545838691,10.2461,87.925,87.851,17.38086719]
[1770545839590,10.2461,87.925,87.854,17.3818946]
[1770545840885,10.2461,87.925,87.856,17.30338634]
[1770545841088,10.2461,87.925,87.864,17.30338634]
[1770545841287,10.2448,87.936,87.864,17.30338634]
[1770545842692,10.2448,87.936,87.868,17.33323643]
[1770545844494,10.2437,87.945,87.868,17.33323643]
[1770545845395,4.30885356,87.92,87.868,17.33323643]
[1770545849593,10.45452405,87.96,87.868,17.33323643]
[1770545849594,4.30885356,87.9,87.868,17.33323643]
[1770545851395,10.2478,87.91,87.834,17.40052473]
[1770545851396,4.30885356,87.89,87.834,17.40052473]
[1770545852497,14.55775356,87.9,87.834,17.40052473]
[1770545855397,14.55775356,87.9,87.84,4.30885356]
[1770545855598,14.55775356,87.9,87.841,17.58226697]
[1770545857302,10.2499,87.892,87.841,17.58226697]
[1770545858602,10.2499,87.892,87.84,4.30885356]
[1770545858603,4.30885356,87.91,87.851,17.55352327]
[1770545860507,10.248,87.908,87.851,17.55352327]
[1770545860704,48.0263381,87.949,87.851,17.55352327]
[1770545860705,4.30885356,87.9,87.851,17.55352327]
[1770545860899,4.30885356,87.89,87.851,17.55352327]
[1770545861501,4.30885356,87.9,87.851,17.55352327]
[1770545861705,14.55775356,87.9,87.851,17.55352327]
[1770545864413,4.30885356,87.91,87.851,17.55352327]
[1770545865705,4.30885356,87.9,87.851,17.55352327]
[1770545865911,10.2479,87.909,87.851,17.55352327]
[1770545870814,4.30885356,87.93,87.871,17.52853955]
[1770545871820,10.2458,87.928,87.871,17.52853955]
[1770545873414,4.30885356,87.91,87.871,17.52853955]
[1770545874720,10.248,87.908,87.871,17.52853955]
[1770545877821,4.30885356,87.9,87.871,17.52853955]
[1770545879820,10.248,87.908,87.871,17.52853955]
[1770545880824,4.30885356,87.91,87.871,17.52853955]
[1770545880825,10.249,87.9,87.871,17.52853955]
[1770545882524,10.2479,87.909,87.871,17.52853955]
[1770545892736,10.2468,87.919,87.871,17.52853955]
[1770545911252,4.30909067,87.92,87.871,17.52853955]
[1770545911458,9.27230824,87.919,87.871,17.52853955]
[1770545911658,4.30909067,87.92,87.871,17.52853955]
[1770545911860,9.27148125,87.919,87.871,17.52853955]
[1770545912060,4.30909067,87.92,87.871,17.52853955]
[1770545912359,9.27274869,87.919,87.871,17.52853955]
[1770545912560,4.30909067,87.92,87.871,17.52853955]
[1770545912760,10.2486,87.903,87.871,17.52853955]
[1770545915861,4.30909067,87.92,87.871,17.52853955]
[1770545916059,4.30909067,87.93,87.871,17.52853955]
[1770545916762,4.30909067,87.92,87.871,17.52853955]
[1770545917164,10.247,87.917,87.871,17.52853955]
[1770545917356,4.30909067,87.9,87.871,17.52853955]
[1770545917758,4.30909067,87.9,87.841,17.3613407]
[1770545917958,4.30909067,87.86,87.801,17.3613407]
[1770545918354,4.30909067,87.85,87.801,17.3613407]
[1770545919766,4.30909067,87.83,87.801,0.0730407]
[1770545920263,14.56509067,87.84,87.801,0.0730407]
[1770545921365,10.256,87.84,87.801,0.0730407]
[1770545922367,14.56509067,87.84,87.801,0.0730407]
[1770545924466,10.2569,87.832,87.801,0.0730407]
[1770545926370,10.2554,87.845,87.801,0.0730407]
[1770545930678,4.30909067,87.85,87.801,0.0730407]
[1770545931467,10.59346526,87.852,87.801,0.0730407]
[1770545938379,10.59346526,87.852,87.811,13.14213664]
[1770545941177,11.37002774,87.869,87.811,13.14213664]
[1770545941387,4.30909067,87.88,87.83,4.30909067]
[1770545941588,11.37002774,87.881,87.831,13.14213664]
[1770545941981,4.30909067,87.87,87.823,10.2579]
[1770545942182,4.30909067,87.85,87.795,13.14213664]
[1770545942382,11.39660358,87.839,87.781,13.14213664]
[1770545942583,11.39660358,87.839,87.789,10.2618]
[1770545943289,11.39660358,87.839,87.79,13.14213664]
[1770545943786,11.39660358,87.839,87.792,10.2615]
[1770545943986,11.39660358,87.839,87.792,23.40363664]
[1770545945791,11.39660358,87.839,87.793,13.24154764]
[1770545946386,11.06451892,87.829,87.781,10.2627]
[1770545946587,11.06451892,87.829,87.782,13.24154764]
[1770545947285,11.06451892,87.829,87.783,10.2625]
[1770545947996,11.04401098,87.819,87.773,10.2637]
[1770545948284,11.04401098,87.819,87.774,13.24154764]
[1770545952385,12.17737804,87.83,87.774,13.24154764]
[1770545953092,4.30909067,87.82,87.774,13.24154764]
[1770545953395,11.6923403,87.819,87.774,13.24154764]
[1770545954390,4.30909067,87.81,87.774,13.24154764]
[1770545954795,11.66282111,87.809,87.774,13.24154764]
[1770545955393,11.66282111,87.809,87.763,14.1006554]
[1770545955895,11.68492817,87.799,87.74,14.1006554]
[1770545956086,11.68492817,87.789,87.74,14.1006554]
[1770545956391,11.68492817,87.789,87.741,14.1006554]
[1770545957491,11.84042199,87.779,87.732,14.1006554]
[1770545963294,11.98329558,87.809,87.76,4.30909067]
[1770545963697,11.98329558,87.809,87.751,14.1006554]
[1770545965300,11.98329558,87.809,87.76,4.30909067]
[1770545965603,11.98329558,87.809,87.761,14.1006554]
[1770545966898,10.2575,87.827,87.771,14.1006554]
[1770545967093,12.2086528,87.826,87.771,14.1006554]
[1770545968597,12.35867551,87.824,87.771,14.1006554]
[1770545971001,12.35867551,87.824,87.721,34.24]
[1770545971002,12.32568307,87.789,87.735,14.1006554]
[1770545971402,12.32568307,87.789,87.75,4.31828813]
[1770545971599,12.32568307,87.789,87.741,14.1006554]
[1770545974403,12.32568307,87.789,87.732,10.2685]
[1770545974404,12.24294588,87.803,87.76,4.31828813]
[1770545974605,12.24294588,87.803,87.77,4.31828813]
[1770545975008,12.24294588,87.803,87.747,14.1006554]
[1770545975201,12.40369555,87.829,87.77,4.31828813]
[1770545975809,12.41374323,87.828,87.771,13.55294732]
[1770545979211,12.39135652,87.819,87.759,13.55294732]
[1770545979416,4.31828813,87.81,87.759,13.55294732]
[1770545979612,12.39055088,87.809,87.759,13.55294732]
[1770545980719,12.4339144,87.789,87.732,13.55294732]
[1770545981211,12.4339144,87.789,87.741,13.55294732]
[1770545992812,4.31828813,87.78,87.741,13.55294732]
[1770545993118,12.22531541,87.779,87.741,13.55294732]
[1770545993318,12.22531541,87.779,87.729,13.55294732]
[1770545998021,12.22531541,87.779,87.732,13.55294732]
[1770545999823,12.22531541,87.779,87.734,10.2683]
[1770546000018,12.22531541,87.779,87.734,23.82124732]
[1770546001714,12.22531541,87.779,87.735,13.55294732]
[1770546002114,12.22531541,87.779,87.736,10.268]
[1770546002423,4.31828813,87.81,87.75,4.31828813]
[1770546002618,4.31828813,87.81,87.7,1.98296248]
[1770546002619,12.10299827,87.81,87.761,13.55294732]
[1770546003316,12.0972192,87.799,87.761,13.55294732]
[1770546003516,12.09659704,87.789,87.75,13.55294732]
[1770546004023,4.31828813,87.78,87.728,13.55294732]
[1770546004330,12.09090941,87.779,87.728,13.55294732]
[1770546004924,12.30693875,87.796,87.75,4.31828813]
[1770546005124,12.30693875,87.796,87.751,13.55294732]
[1770546005833,12.29583559,87.809,87.761,13.85671682]
[1770546007830,12.1856576,87.822,87.781,13.85671682]
[1770546008019,12.18024246,87.838,87.781,13.85671682]
[1770546008420,12.18024246,87.838,87.723,11.4]
[1770546008421,12.18024246,87.838,87.791,13.85671682]
[1770546008624,12.24211126,87.849,87.791,13.85671682]
[1770546010329,12.24211126,87.849,87.8,4.31828813]
[1770546010633,12.24211126,87.849,87.801,13.85671682]
[1770546011132,12.20826237,87.862,87.821,13.85671682]
[1770546013032,10.45452405,87.905,87.742,54.7746]
[1770546013033,12.16325081,87.888,87.841,13.85671682]
[1770546015431,12.16325081,87.888,87.83,4.31828813]
[1770546015633,12.13024125,87.879,87.815,13.27656585]
[1770546015834,12.13024125,87.879,87.83,4.31828813]
[1770546016135,12.13024125,87.879,87.831,13.27656585]
[1770546017340,4.31828813,87.87,87.831,13.27656585]
[1770546018044,4.31828813,87.86,87.811,13.27656585]
[1770546018438,12.40981018,87.829,87.771,13.27656585]
[1770546019234,4.31828813,87.83,87.773,13.27656585]
[1770546019440,4.31828813,87.86,87.801,13.27656585]
[1770546019641,16.72268277,87.86,87.801,13.27656585]
[1770546019841,12.40020985,87.859,87.801,13.27656585]
[1770546020742,12.35527047,87.858,87.801,13.27656585]
[1770546023035,4.31828813,87.83,87.788,13.27656585]
[1770546023640,12.34680975,87.834,87.788,13.27656585]
[1770546023939,4.31828813,87.83,87.788,13.27656585]
[1770546024545,12.34680975,87.834,87.788,13.27656585]
[1770546025347,12.27536757,87.848,87.791,13.27656585]
[1770546029147,4.31638614,87.84,87.791,13.27656585]
[1770546030945,4.31638614,87.85,87.791,13.27656585]
[1770546031149,11.88891034,87.86,87.801,13.27656585]
[1770546031447,11.88891034,87.86,87.81,4.31638614]
[1770546031653,4.31638614,87.87,87.811,13.27656585]
[1770546032247,11.8842064,87.871,87.811,13.27656585]
[1770546032438,4.31638614,87.87,87.811,13.27656585]
[1770546033241,16.61920905,87.88,87.821,13.27656585]
[1770546033441,12.30233725,87.921,87.84,4.31638614]
[1770546033637,12.30233725,87.879,87.821,13.27656585]
[1770546034744,4.31638614,87.87,87.821,13.27656585]
[1770546034940,4.31638614,87.86,87.821,13.27656585]
[1770546036244,4.31638614,87.87,87.821,13.27656585]
[1770546037052,16.47766815,87.87,87.821,13.27656585]
[1770546037349,12.16128201,87.869,87.821,13.27656585]
[1770546037555,4.31638614,87.88,87.821,13.27656585]
[1770546037847,12.16084594,87.879,87.821,13.27656585]
[1770546038043,4.31638614,87.87,87.821,13.27656585]
[1770546040344,16.52710234,87.87,87.821,13.27656585]
[1770546040549,4.31638614,87.86,87.821,13.27656585]
[1770546042155,12.13729191,87.869,87.821,13.27656585]
[1770546043551,12.12312611,87.868,87.821,13.27656585]
[1770546043859,12.12312611,87.859,87.821,13.27656585]
[1770546045361,12.12312611,87.859,87.801,13.54241498]
[1770546046958,22.26134624,87.858,87.801,13.54241498]
[1770546048255,10.2542,87.855,87.801,13.54241498]
[1770546048857,22.30304818,87.855,87.801,13.54241498]
[1770546050062,10.2524,87.87,87.82,4.31638614]
[1770546050259,10.2524,87.87,87.831,13.54241498]
[1770546051160,12.0426437,87.874,87.831,13.54241498]
[1770546052162,10.2515,87.879,87.831,13.54241498]
[1770546052765,12.30815014,87.878,87.831,13.54241498]
[1770546061072,4.31638614,87.88,87.831,13.54241498]
[1770546061376,4.31638614,87.89,87.831,13.54241498]
[1770546061576,12.13291567,87.889,87.831,13.54241498]
[1770546061773,4.31638614,87.88,87.831,13.54241498]
[1770546062477,12.13046258,87.879,87.831,13.54241498]
[1770546063273,12.2305217,87.869,87.811,13.54241498]
[1770546063472,12.23015468,87.859,87.811,13.54241498]
[1770546065286,10.50490613,87.901,87.764,11.39]
[1770546065287,12.04755945,87.849,87.765,13.54241498]
[1770546065575,16.36362796,87.81,87.765,13.54241498]
[1770546065780,12.0392763,87.799,87.75,13.02435446]
[1770546066281,4.31638614,87.79,87.75,13.02435446]
[1770546066883,16.29306524,87.79,87.75,13.02435446]
[1770546068978,11.9766791,87.79,87.75,13.02435446]
[1770546069585,10.59823992,87.844,87.682,11.39]
[1770546069586,16.08852402,87.76,87.691,13.02435446]
[1770546069775,11.76988876,87.739,87.691,13.02435446]
[1770546069972,4.31638614,87.73,87.677,13.02435446]
[1770546070175,11.76988876,87.728,87.677,13.02435446]
[1770546070377,11.76988876,87.728,87.68,4.31638614]
[1770546070683,11.76988876,87.728,87.677,13.02435446]
[1770546072274,11.76988876,87.728,87.647,13.02435446]
[1770546072482,11.76988876,87.728,87.661,13.02435446]
[1770546073788,12.09552529,87.749,87.664,13.86179278]
[1770546073979,12.09552529,87.749,87.64,1.98417789]
[1770546073980,12.09269407,87.789,87.681,13.86179278]
[1770546074181,12.09269407,87.739,87.645,13.86179278]
[1770546075390,12.09269407,87.739,87.647,13.86179278]
[1770546076691,12.09269407,87.739,87.65,10.2781]
[1770546076991,12.09269407,87.739,87.651,13.86179278]
[1770546078087,12.09269407,87.739,87.655,13.86179278]
[1770546079187,12.09269407,87.739,87.658,13.86179278]
[1770546079386,12.09269407,87.739,87.66,11.59163024]
[1770546079582,12.09269407,87.739,87.681,13.86179278]
[1770546080387,10.2682,87.735,87.644,13.86179278]
[1770546080587,0.05546653,87.709,87.645,14.33090579]
[1770546081293,0.05546653,87.709,87.648,14.33090579]
[1770546084692,11.59163024,87.75,87.651,14.54533948]
[1770546085397,11.59163024,87.69,87.606,14.54533948]
[1770546085596,11.59163024,87.67,87.606,14.54533948]
[1770546085992,34.2,87.719,87.606,14.54533948]
[1770546085993,11.59163024,87.69,87.606,14.54533948]
[1770546088495,0.05075796,87.689,87.606,14.54533948]
[1770546089187,0.05075796,87.689,87.621,14.42595032]
[1770546089387,0.07273043,87.719,87.621,14.42595032]
[1770546089893,0.07273043,87.719,87.556,448.54644655]
[1770546089894,0.09632404,87.679,87.572,14.42490299]
[1770546090100,0.09632404,87.669,87.572,14.42490299]
[1770546090594,0.09632404,87.669,87.591,14.40409296]
[1770546090792,0.13794411,87.684,87.591,14.40409296]
[1770546091799,0.13794411,87.684,87.611,14.40305863]
[1770546092002,0.18257854,87.702,87.631,14.40305863]
[1770546094400,11.59906683,87.67,87.589,15.36595573]
[1770546094595,34.2,87.719,87.589,15.36595573]
[1770546094800,11.59906683,87.68,87.589,15.36595573]
[1770546095497,11.59906683,87.68,87.591,14.8795772]
[1770546096006,10.2747,87.679,87.591,14.8795772]
[1770546096196,11.59906683,87.7,87.591,14.8795772]
[1770546097302,10.2761,87.668,87.591,14.8795772]
[1770546097494,11.59906683,87.7,87.591,14.8795772]
[1770546097699,11.59906683,87.7,87.576,10.2867]
[1770546097700,11.59906683,87.7,87.601,15.04198108]
[1770546098797,10.2747,87.68,87.601,15.04198108]
[1770546099195,11.59906683,87.64,87.558,15.06843036]
[1770546099798,20.5463,87.693,87.561,15.06795672]
[1770546100002,11.59906683,87.66,87.561,15.06795672]
[1770546100700,10.2788,87.645,87.561,15.06795672]
[1770546100901,11.59906683,87.66,87.561,15.06795672]
[1770546101812,11.59906683,87.66,87.518,34.2]
[1770546102026,11.59906683,87.66,87.41,160.3209]
[1770546102027,11.59906683,87.59,87.487,38.85268203]
[1770546102501,10.2883,87.564,87.491,38.65852429]
[1770546102703,10.2883,87.564,87.491,36.67033346]
[1770546102903,10.2866,87.578,87.491,36.67033346]
[1770546103206,11.59906683,87.63,87.53,11.59906683]
[1770546103406,159.8902,87.646,87.53,11.59906683]
[1770546103707,10.2842,87.599,87.53,11.59906683]
[1770546104098,11.59906683,87.58,87.47,11.59906683]
[1770546104308,10.2907,87.543,87.47,11.59906683]
[1770546104506,11.59906683,87.54,87.471,5.739e-05]
[1770546104707,160.0397,87.565,87.471,5.739e-05]
[1770546104909,10.2922,87.531,87.471,5.739e-05]
[1770546105109,11.59906683,87.55,87.471,5.739e-05]
[1770546105311,11.59906683,87.53,87.471,5.739e-05]
[1770546105614,10.2955,87.503,87.471,5.739e-05]
[1770546106211,10.2955,87.503,87.368,228.16]
[1770546106212,11.59906683,87.49,87.317,160.4919]
[1770546106508,11.59906683,87.45,87.34,11.59906683]
[1770546106712,10.3023,87.445,87.36,11.59906683]
[1770546106911,160.2285,87.461,87.34,11.59906683]
[1770546107110,20.5867,87.521,87.36,11.59906683]
[1770546107111,160.1604,87.499,87.36,11.59906683]
[1770546107410,11.59906683,87.51,87.39,11.59906683]
[1770546107715,10.3003,87.462,87.364,10.3117]
[1770546108106,10.3003,87.462,87.365,24.58041268]
[1770546108307,10.3003,87.462,87.306,302.57770084]
[1770546108308,11.59906683,87.44,87.307,24.58041268]
[1770546108509,11.59906683,87.44,87.331,24.12806098]
[1770546109207,10.3063,87.411,87.331,24.12806098]
[1770546109402,11.59906683,87.44,87.331,24.12806098]
[1770546109612,11.59906683,87.44,87.351,24.12911493]
[1770546109917,11.59906683,87.47,87.371,24.12911493]
[1770546110215,20.5766,87.564,87.391,24.12911493]
[1770546110408,11.59906683,87.51,87.411,24.12911493]
[1770546110914,10.2962,87.497,87.411,24.12911493]
[1770546112511,11.59906683,87.53,87.407,10.3067]
[1770546112706,160.105,87.529,87.387,24.14096158]
[1770546112912,10.2992,87.471,87.391,24.14096158]
[1770546113117,11.59906683,87.47,87.391,24.14096158]
[1770546113618,10.2974,87.487,87.391,24.14096158]
[1770546113912,11.59906683,87.48,87.391,24.14096158]
[1770546115418,10.2987,87.475,87.391,24.14096158]
[1770546116122,10.3003,87.462,87.391,24.14096158]
[1770546116518,11.59906683,87.46,87.357,24.15614925]
[1770546117211,10.3001,87.464,87.365,24.15614925]
[1770546117416,10.3001,87.464,87.371,24.15614925]
[1770546117616,11.59906683,87.49,87.391,24.15721614]
[1770546118307,10.2983,87.479,87.391,24.15721614]
[1770546118707,11.59906683,87.48,87.363,23.95155366]
[1770546118909,11.59906683,87.47,87.363,23.95155366]
[1770546119616,10.3004,87.461,87.364,23.95153775]
[1770546120119,10.2984,87.478,87.38,23.95153775]
[1770546120321,11.59906683,87.48,87.381,23.95153775]
[1770546120823,10.303,87.439,87.381,23.95153775]
[1770546121524,10.303,87.439,87.266,20.6467]
[1770546121525,2.02328111,87.419,87.32,11.59906683]
[1770546122216,10.3072,87.403,87.32,11.59906683]
[1770546122811,2.28253939,87.397,87.306,1.524e-05]
[1770546123014,11.59906683,87.42,87.26,11.59906683]
[1770546123015,2.28253939,87.349,87.26,11.59906683]
[1770546123214,13.88160622,87.33,87.24,10.09243542]
[1770546123515,13.88160622,87.35,87.251,15.24658988]
[1770546123711,2.47502708,87.37,87.253,15.24658988]
[1770546123923,10.3169,87.321,87.253,15.24658988]
[1770546124117,13.36736543,87.319,87.253,8.988e-05]
[1770546124521,11.59906683,87.34,87.253,8.988e-05]
[1770546124722,13.36736543,87.341,87.253,8.988e-05]
[1770546125228,10.3173,87.318,87.253,8.988e-05]
[1770546125523,13.36736543,87.339,87.253,8.988e-05]
[1770546125918,16.00626528,87.279,87.078,160.9316]
[1770546126112,16.00626528,87.279,87.072,160.9426]
[1770546126113,27.60533211,87.26,87.161,15.08825155]
[1770546126317,16.00626528,87.259,87.161,15.08825155]
[1770546126614,160.4436,87.344,87.12,11.59906683]
[1770546126615,16.00626528,87.283,87.181,15.08825155]
[1770546126815,16.00626528,87.269,87.181,15.08825155]
[1770546127022,16.00626528,87.29,87.181,15.08825155]
[1770546127216,16.00626528,87.309,87.201,15.08825155]
[1770546127625,27.60533211,87.29,87.201,15.08825155]
[1770546127822,16.00626528,87.28,87.201,15.08825155]
[1770546128322,10.3269,87.236,87.157,15.08825155]
[1770546128522,10.3269,87.236,87.171,15.08825155]
[1770546128719,16.00626528,87.258,87.171,15.08825155]
[1770546129022,16.00626528,87.289,87.171,15.08825155]
[1770546129226,10.3247,87.255,87.171,15.08825155]
[1770546130229,16.00626528,87.264,87.171,15.08825155]
[1770546130629,10.3243,87.259,87.171,15.08825155]
[1770546131519,16.00626528,87.264,87.176,15.08825155]
[1770546131826,16.00626528,87.264,87.191,15.08825155]
[1770546132718,16.00626528,87.285,87.191,15.08825155]
[1770546133325,26.32986528,87.265,87.191,15.08825155]
[1770546133823,10.3243,87.258,87.191,15.08825155]
[1770546135024,16.89555967,87.235,87.168,17.65560624]
[1770546135830,16.89555967,87.254,87.171,17.65560624]
[1770546137325,10.3254,87.249,87.171,17.65560624]
[1770546138625,10.3265,87.24,87.171,17.65560624]
[1770546139230,16.89555967,87.248,87.171,17.65560624]
[1770546140221,160.5215,87.302,87.12,11.59906683]
[1770546140222,10.3234,87.266,87.191,17.65560624]
[1770546140530,16.89555967,87.249,87.146,17.65560624]
[1770546140831,11.59906683,87.3,87.146,17.65560624]
[1770546140832,10.3286,87.223,87.146,17.65560624]
[1770546141035,16.89555967,87.239,87.146,17.65560624]
[1770546141430,16.89555967,87.237,87.161,17.65560624]
[1770546142033,34.2,87.299,87.091,17.65560624]
[1770546142034,16.89555967,87.219,87.091,17.65560624]
[1770546142334,16.89555967,87.179,87.091,17.65560624]
[1770546142633,160.6117,87.253,87.111,17.65560624]
[1770546142826,16.89555967,87.229,87.131,17.65560624]
[1770546143232,16.89555967,87.204,87.131,17.65560624]
[1770546143430,16.89555967,87.204,87.111,17.65560624]
[1770546143632,16.89555967,87.189,87.09,17.65560624]
[1770546143830,16.89555967,87.172,87.09,17.65560624]
[1770546144140,16.89555967,87.172,87.101,17.65560624]
[1770546144826,16.89555967,87.162,87.063,17.65560624]
[1770546145034,16.89555967,87.159,87.071,17.65560624]
[1770546145433,16.89555967,87.153,87.071,17.65560624]
[1770546145833,16.89555967,87.179,87.085,17.65560624]
[1770546146640,10.3359,87.161,87.085,17.65560624]
[1770546146833,16.89555967,87.16,87.085,17.65560624]
[1770546147338,16.89555967,87.158,87.085,17.65560624]
[1770546147533,16.89555967,87.179,87.085,17.65560624]
[1770546147941,16.89555967,87.202,87.101,17.65560624]
[1770546149533,16.89555967,87.159,87.061,17.65560624]
[1770546150236,16.89555967,87.159,87.081,17.65560624]
[1770546150543,16.89555967,87.119,87.033,17.65560624]
[1770546150734,16.89555967,87.079,87.037,2.049e-05]
[1770546151541,16.89555967,87.064,87.037,2.049e-05]
[1770546151932,16.89555967,87.086,87.037,2.049e-05]
[1770546152338,10.3455,87.08,87.037,2.049e-05]
[1770546152532,16.89555967,87.086,87.037,2.049e-05]
[1770546152934,16.89555967,87.071,87.037,2.049e-05]
[1770546153340,16.89555967,87.071,86.98,11.76838139]
[1770546153341,16.89555967,87.032,86.937,10.3624]
[1770546153641,16.89555967,87.032,86.97,11.76838139]
[1770546153835,10.3559,86.992,86.92,11.76838139]
[1770546154037,10.3559,86.992,86.94,11.76838139]
[1770546154242,16.89555967,87.009,86.96,11.76838139]
[1770546154541,16.89555967,87.009,86.95,11.76838139]
[1770546154542,10.3541,87.008,86.95,11.76838139]
[1770546154730,16.89555967,87.009,86.95,11.76838139]
[1770546154929,27.24945967,87.009,86.95,11.76838139]
[1770546155134,16.89555967,87.008,86.95,11.76838139]
[1770546155537,16.89555967,87.008,86.881,17.65560624]
[1770546155748,16.89555967,87.008,86.93,11.76838139]
[1770546155932,10.3583,86.972,86.91,11.76838139]
[1770546156240,10.3583,86.972,86.889,19.2798952]